[Event "XVI Open Internacional Villa de Ibi"]
[Site "Ibi, Spain"]
[Date "????.??.??"]
[Round "2.7"]
[White "Galvan Cipriani, Viviana"]
[Black "Serarols Mabras, Bernat"]
[Result "0-1"]
[TimeControl "15' + 2'' por jugada"]
[WhiteElo "2039"]
[BlackElo "2367"]

1. c4 {[%clk 00:15:03]} {[%emt 00:00:09]} e6 {[%clk 00:15:04]} 2. Nf3 {[%clk
00:15:02]} d5 {[%clk 00:15:05]} 3. b3 {[%clk 00:15:03]} c5 {[%clk 00:15:05]} 4.
e3 {[%clk 00:15:02]} {[%emt 00:00:05]} d4 {[%clk 00:15:04]} {[%emt 00:00:08]} 5.
exd4 {[%clk 00:15:03]} {[%emt 00:00:06]} cxd4 {[%clk 00:15:04]} 6. d3 {[%clk
00:15:04]} Nc6 {[%clk 00:15:05]} 7. g3 {[%clk 00:15:04]} h6 {[%clk 00:15:04]}
{[%emt 00:00:03]} 8. Bg2 {[%clk 00:15:04]} Nf6 {[%clk 00:15:03]} {[%emt
00:00:03]} 9. O-O {[%clk 00:15:04]} Bd6 {[%clk 00:15:03]} {[%emt 00:00:04]} 10.
Re1 {[%clk 00:15:02]} O-O {[%clk 00:15:02]} {[%emt 00:00:12]} 11. Ba3 {[%clk
00:15:02]} Re8 {[%clk 00:14:57]} {[%emt 00:00:03]} 12. Bxd6 {[%clk 00:14:56]}
Qxd6 {[%clk 00:14:57]} {[%emt 00:00:10]} 13. Nbd2 {[%clk 00:14:56]} e5 {[%clk
00:14:55]} {[%emt 00:00:11]} 14. Qe2 {[%clk 00:14:15]} Bf5 {[%clk 00:14:18]}
{[%emt 00:01:14]} 15. a3 {[%clk 00:14:15]} a5 {[%clk 00:14:05]} {[%emt
00:00:26]} 16. Nh4 {[%emt 00:00:13]} Bg4 {[%clk 00:13:47]} 17. Bf3 {[%clk
00:14:13]} {[%emt 00:00:18]} Bxf3 {[%clk 00:13:48]} 18. Qxf3 {[%clk 00:14:12]}
g6 {[%clk 00:13:19]} {[%emt 00:00:23]} 19. Ra2 {[%clk 00:13:31]} Kg7 {[%clk
00:13:14]} {[%emt 00:00:49]} 20. Nb1 {[%clk 00:13:15]} Rab8 {[%clk 00:12:57]}
{[%emt 00:00:48]} 21. Rc2 {[%clk 00:13:05]} Nd7 {[%clk 00:12:31]} {[%emt
00:00:29]} 22. Qe2 {[%clk 00:12:13]} Nc5 {[%clk 00:12:01]} {[%emt 00:01:25]} 23.
Rb2 {[%clk 00:12:09]} b5 {[%clk 00:11:42]} {[%emt 00:00:28]} 24. Nd2 {[%clk
00:11:34]} bxc4 {[%clk 00:11:20]} {[%emt 00:01:01]} 25. Nxc4 {[%clk 00:11:32]}
Qd5 {[%clk 00:11:20]} {[%emt 00:00:34]} 26. Qd1 {[%clk 00:08:58]} f5 {[%clk
00:10:15]} {[%emt 00:03:15]} 27. f3 {[%clk 00:08:37]} Re7 {[%clk 00:09:02]}
{[%emt 00:01:37]} 28. Qb1 {[%clk 00:06:55]} Reb7 {[%clk 00:08:38]} {[%emt
00:02:16]} 29. b4 {[%emt 00:05:44]} axb4 {[%clk 00:08:38]} 30. axb4 {[%clk
00:01:17]} Rxb4 {[%clk 00:08:18]} {[%emt 00:00:16]} 31. Rxb4 {[%clk 00:00:55]}
Rxb4 {[%clk 00:08:17]} {[%emt 00:00:32]} 32. Qc2 {[%emt 00:00:47]} Nxd3 {[%clk
00:07:33]} 33. Qxd3 {[%clk 00:00:34]} Qxc4 {[%clk 00:07:28]} {[%emt 00:00:30]}
34. Nxf5+ {[%emt 00:00:19]} gxf5 {[%clk 00:06:47]} {[%emt 00:00:33]} 35. Qxf5
{[%clk 00:00:23]} {[%emt 00:00:24]} Qf7 {[%clk 00:05:11]} {[%emt 00:01:16]} 36.
Qg4+ {[%clk 00:00:20]} {[%emt 00:00:31]} Kh7 {[%clk 00:04:55]} {[%emt
00:00:07]} 37. Kg2 {[%clk 00:00:09]} {[%emt 00:00:06]} d3 {[%clk 00:04:35]}
{[%emt 00:00:15]} 38. Qc8 {[%clk 00:00:09]} {[%emt 00:00:10]} Rb2+ {[%clk
00:04:14]} {[%emt 00:00:22]} 39. Kg1 {[%clk 00:00:10]} {[%emt 00:00:12]} Rc2
{[%clk 00:02:29]} {[%emt 00:01:48]} 40. Rf1 {[%clk 00:00:04]} d2 {[%clk
00:02:21]} {[%emt 00:00:06]} 41. Qa6 {[%clk 00:00:04]} Qa7+ {[%clk 00:02:11]}
{[%emt 00:00:09]} 42. Qxa7+ {[%clk 00:00:04]} {[%emt 00:00:17]} Nxa7 {[%clk
00:02:13]} 43. Kf2 {[%clk 00:00:04]} d1=Q+ {[%clk 00:02:12]} {[%emt 00:00:04]}
0-1

[Event "XVI Open Internacional Villa de Ibi"]
[Site "Ibi, Spain"]
[Date "2018.09.09"]
[Round "3.1"]
[White "Plaskett, H James"]
[Black "Cano Gimenez, Vicente"]
[Result "1-0"]
[TimeControl "15' + 2'' por jugada"]
[WhiteElo "2450"]
[BlackElo "2288"]

1. Nf3 {[%clk 00:15:02]} d5 {[%clk 00:14:59]} {[%emt 00:00:04]} 2. c4 {[%clk
00:14:57]} {[%emt 00:00:07]} c6 {[%clk 00:14:59]} {[%emt 00:00:04]} 3. d4
{[%clk 00:14:56]} {[%emt 00:00:03]} Nf6 {[%clk 00:14:59]} 4. Nc3 {[%clk
00:14:56]} {[%emt 00:00:07]} a6 {[%clk 00:14:59]} {[%emt 00:00:04]} 5. Bg5
{[%clk 00:14:30]} {[%emt 00:00:18]} Ne4 {[%clk 00:14:55]} {[%emt 00:00:30]} 6.
Bh4 {[%clk 00:14:20]} g6 {[%clk 00:13:56]} {[%emt 00:00:49]} 7. e3 {[%clk
00:14:09]} {[%emt 00:00:25]} Bg7 {[%clk 00:13:48]} 8. Qb3 {[%clk 00:12:57]}
{[%emt 00:01:14]} Nxc3 {[%clk 00:13:04]} {[%emt 00:01:05]} 9. bxc3 {[%clk
00:12:57]} b5 {[%clk 00:11:17]} {[%emt 00:01:32]} 10. cxd5 {[%clk 00:12:48]}
{[%emt 00:00:28]} cxd5 {[%clk 00:11:05]} 11. a4 {[%clk 00:12:38]} {[%emt
00:00:06]} bxa4 {[%clk 00:10:49]} {[%emt 00:00:30]} 12. Qxa4+ {[%clk 00:11:13]}
{[%emt 00:01:15]} Bd7 {[%clk 00:09:17]} {[%emt 00:01:35]} 13. Qa3 {[%clk
00:11:09]} {[%emt 00:00:08]} Nc6 {[%clk 00:08:50]} {[%emt 00:01:00]} 14. Bb5
{[%clk 00:10:38]} {[%emt 00:00:07]} Bf6 {[%clk 00:08:14]} {[%emt 00:00:40]} 15.
Bxf6 {[%clk 00:09:38]} {[%emt 00:00:52]} exf6 {[%clk 00:08:15]} {[%emt
00:00:13]} 16. O-O {[%clk 00:09:21]} {[%emt 00:00:09]} Ne7 {[%clk 00:06:49]}
{[%emt 00:01:25]} 17. Bxa6 {[%clk 00:08:49]} {[%emt 00:00:42]} O-O {[%clk
00:06:50]} {[%emt 00:00:03]} 18. Qc5 {[%clk 00:08:33]} {[%emt 00:00:10]} Bg4
{[%clk 00:06:25]} {[%emt 00:00:32]} 19. Nd2 {[%clk 00:08:18]} {[%emt 00:00:12]}
Rxa6 {[%clk 00:06:01]} {[%emt 00:00:25]} 20. Rxa6 {[%clk 00:08:18]} {[%emt
00:00:10]} Be2 {[%clk 00:06:01]} 21. Rd6 {[%clk 00:08:12]} {[%emt 00:00:04]}
Qc8 {[%clk 00:05:54]} {[%emt 00:00:08]} 22. Re1 {[%clk 00:07:45]} {[%emt
00:00:58]} Bd3 {[%clk 00:05:05]} {[%emt 00:00:27]} 23. Qxc8 {[%clk 00:07:42]}
{[%emt 00:00:04]} Rxc8 {[%clk 00:05:00]} {[%emt 00:00:08]} 24. Rc1 {[%clk
00:07:42]} Kg7 {[%clk 00:04:32]} {[%emt 00:00:55]} 25. Rd7 {[%clk 00:07:36]}
Kf8 {[%clk 00:04:32]} 26. h3 {[%clk 00:07:31]} Ra8 {[%clk 00:04:25]} {[%emt
00:00:03]} 27. Nb3 {[%clk 00:07:21]} {[%emt 00:00:06]} Bb5 {[%clk 00:03:47]}
{[%emt 00:01:19]} 28. Rb7 {[%clk 00:07:06]} Bc6 {[%clk 00:03:40]} 29. Rc7
{[%clk 00:07:01]} Ke8 {[%clk 00:03:32]} {[%emt 00:00:14]} 30. Ra1 {[%clk
00:06:53]} 1-0

[Event "XVI Open Internacional Villa de Ibi"]
[Site "Ibi, Spain"]
[Date "2018.09.09"]
[Round "3.2"]
[White "Arias Igual, Alejandro"]
[Black "Giaccio, Alfredo"]
[Result "1/2-1/2"]
[TimeControl "15' + 2'' por jugada"]
[WhiteElo "2260"]
[BlackElo "2442"]

1. e4 {[%clk 00:15:02]} {[%emt 00:00:05]} e6 {[%clk 00:15:01]} {[%emt
00:00:05]} 2. d4 {[%clk 00:15:03]} d5 {[%clk 00:15:01]} {[%emt 00:00:04]} 3.
exd5 {[%clk 00:15:03]} exd5 {[%clk 00:15:02]} 4. Nf3 {[%clk 00:15:02]} Bd6
{[%clk 00:15:02]} {[%emt 00:00:05]} 5. c4 {[%clk 00:15:02]} {[%emt 00:00:05]}
dxc4 {[%clk 00:15:01]} 6. Bxc4 {[%clk 00:15:01]} {[%emt 00:00:04]} h6 {[%clk
00:13:46]} {[%emt 00:01:14]} 7. O-O {[%clk 00:14:51]} {[%emt 00:00:12]} Ne7
{[%clk 00:13:47]} 8. Ne5 {[%clk 00:13:32]} {[%emt 00:01:22]} O-O {[%clk
00:13:45]} {[%emt 00:00:06]} 9. Qf3 {[%clk 00:12:58]} {[%emt 00:00:34]} Qe8
{[%clk 00:11:27]} {[%emt 00:02:20]} 10. Nc3 {[%clk 00:11:54]} {[%emt 00:01:14]}
Nbc6 {[%clk 00:11:24]} 11. Be3 {[%clk 00:10:08]} {[%emt 00:01:46]} Bxe5 {[%clk
00:10:10]} {[%emt 00:01:19]} 12. dxe5 {[%clk 00:10:08]} {[%emt 00:00:09]} Nxe5
{[%clk 00:10:10]} 13. Qe4 {[%clk 00:09:55]} {[%emt 00:00:05]} Nxc4 {[%clk
00:10:06]} {[%emt 00:00:11]} 14. Qxc4 {[%clk 00:09:55]} c6 {[%clk 00:08:21]}
{[%emt 00:01:44]} 15. Rfe1 {[%clk 00:09:40]} {[%emt 00:00:17]} Be6 {[%clk
00:08:20]} {[%emt 00:00:07]} 16. Qb4 {[%clk 00:08:26]} {[%emt 00:01:13]} Qd7
{[%clk 00:07:44]} {[%emt 00:00:38]} 17. Rad1 {[%clk 00:08:08]} {[%emt
00:00:19]} Nd5 {[%clk 00:07:44]} {[%emt 00:00:07]} 18. Nxd5 {[%clk 00:06:32]}
{[%emt 00:01:37]} Bxd5 {[%clk 00:07:45]} 19. a3 {[%clk 00:05:59]} {[%emt
00:00:36]} Rfe8 {[%clk 00:07:34]} {[%emt 00:00:10]} 20. Bd2 {[%clk 00:05:39]}
{[%emt 00:00:22]} b6 {[%clk 00:06:02]} {[%emt 00:01:40]} 21. Bc3 {[%clk
00:04:59]} {[%emt 00:00:35]} Qf5 {[%clk 00:05:56]} {[%emt 00:00:09]} 22. Qh4
{[%clk 00:04:24]} {[%emt 00:00:38]} f6 {[%clk 00:05:19]} {[%emt 00:00:38]} 23.
Qg3 {[%clk 00:03:46]} {[%emt 00:00:40]} Kh7 {[%clk 00:04:27]} {[%emt 00:00:53]}
24. h3 {[%clk 00:03:42]} {[%emt 00:00:07]} h5 {[%clk 00:04:15]} {[%emt
00:00:15]} 25. Rxe8 {[%clk 00:03:19]} {[%emt 00:00:24]} Rxe8 {[%clk 00:04:15]}
26. Re1 {[%clk 00:03:19]} {[%emt 00:00:05]} Rxe1+ {[%clk 00:03:08]} {[%emt
00:01:08]} 27. Bxe1 {[%clk 00:03:20]} Qb1 {[%clk 00:03:09]} {[%emt 00:00:05]}
28. Qc3 {[%clk 00:03:17]} {[%emt 00:00:04]} Qe4 {[%clk 00:03:07]} {[%emt
00:00:04]} 29. f3 {[%clk 00:03:09]} {[%emt 00:00:07]} Qe6 {[%clk 00:02:49]}
{[%emt 00:00:20]} 30. Kf2 {[%clk 00:02:53]} {[%emt 00:00:50]} Qf5 {[%clk
00:02:47]} {[%emt 00:01:00]} 31. Qe3 {[%clk 00:02:44]} Bf7 {[%clk 00:01:44]}
{[%emt 00:07:22]} 32. Bc3 {[%clk 00:02:39]} Bg6 {[%clk 00:01:45]} 33. Bd2
{[%clk 00:02:22]} c5 {[%clk 00:01:46]} 34. Bc3 {[%clk 00:02:21]} Qd5 {[%clk
00:01:40]} 35. Qd2 {[%clk 00:02:19]} {[%emt 00:00:04]} Qc4 {[%clk 00:01:35]} 36.
Qe2 {[%clk 00:02:14]} Qb3 {[%clk 00:01:24]} 37. Qe7 {[%clk 00:02:11]} Qc2+
{[%clk 00:01:15]} {[%emt 00:00:04]} 38. Qe2 {[%clk 00:02:11]} Qf5 {[%clk
00:01:15]} 39. Qe7 {[%clk 00:02:03]} a5 {[%clk 00:01:10]} 40. Qd6 {[%clk
00:01:44]} Qc2+ {[%clk 00:00:39]} {[%emt 00:00:04]} 41. Kg3 {[%clk 00:01:39]}
Qb3 {[%clk 00:00:39]} 42. Qe7 {[%clk 00:01:34]} Bf7 {[%clk 00:00:32]} 43. Qe4+
{[%clk 00:01:31]} Kg8 {[%clk 00:00:31]} 44. Qa8+ {[%clk 00:01:26]} Kh7 {[%clk
00:00:33]} 45. Qe4+ {[%clk 00:01:27]} Bg6 {[%clk 00:00:28]} 46. Qe7 {[%clk
00:01:28]} Qf7 {[%clk 00:00:22]} 47. Qxf7 {[%clk 00:01:27]} Bxf7 {[%clk
00:00:24]} 48. h4 {[%clk 00:01:23]} Bc4 {[%clk 00:00:20]} 49. Kf4 {[%clk
00:01:22]} Kg6 {[%clk 00:00:20]} 50. g4 {[%clk 00:01:20]} {[%emt 00:00:18]} Kf7
{[%clk 00:00:20]} 51. g5 {[%clk 00:01:04]} fxg5+ {[%clk 00:00:17]} 52. Kxg5
{[%clk 00:01:02]} g6 {[%clk 00:00:19]} 53. Kf4 {[%clk 00:00:42]} Ke6 {[%clk
00:00:20]} 54. Ke4 {[%clk 00:00:39]} Bb3 {[%clk 00:00:20]} 55. Bg7 {[%clk
00:00:36]} Bc2+ {[%clk 00:00:21]} 56. Ke3 {[%clk 00:00:23]} b5 {[%clk
00:00:23]} 57. Bf8 {[%clk 00:00:23]} Kd5 {[%clk 00:00:24]} 58. Be7 {[%clk
00:00:22]} b4 {[%clk 00:00:24]} 59. axb4 {[%clk 00:00:22]} cxb4 {[%clk
00:00:22]} 60. Bf8 {[%clk 00:00:22]} Kc4 {[%clk 00:00:22]} 61. Kd2 {[%clk
00:00:22]} Bf5 {[%clk 00:00:23]} 62. f4 {[%clk 00:00:18]} Kd4 {[%clk 00:00:19]}
63. Be7 {[%clk 00:00:17]} Ke4 {[%clk 00:00:20]} 64. Bg5 {[%clk 00:00:18]} Kd4
{[%clk 00:00:16]} 65. Bf6+ {[%clk 00:00:18]} Kc4 {[%clk 00:00:18]} 66. Be7
{[%clk 00:00:15]} Kb3 {[%clk 00:00:18]} 67. Kc1 {[%clk 00:00:16]} a4 {[%clk
00:00:13]} 68. Bd6 {[%clk 00:00:16]} a3 {[%clk 00:00:14]} 69. bxa3 {[%clk
00:00:17]} bxa3 {[%clk 00:00:15]} 70. Be5 {[%clk 00:00:18]} Kc4 {[%clk
00:00:15]} 71. Kd2 {[%clk 00:00:19]} Kd5 {[%clk 00:00:16]} 72. Ke3 {[%clk
00:00:20]} Be6 {[%clk 00:00:13]} 73. Kf3 {[%clk 00:00:19]} Kc4 {[%clk
00:00:13]} 74. Ke3 {[%clk 00:00:19]} Bd7 {[%clk 00:00:14]} 75. Bf6 {[%clk
00:00:20]} Bf5 {[%clk 00:00:14]} 76. Be5 {[%clk 00:00:21]} Bh3 {[%clk
00:00:13]} 77. Bf6 {[%clk 00:00:22]} Bc8 {[%clk 00:00:13]} 78. Bg7 {[%clk
00:00:23]} Kd5 {[%clk 00:00:12]} 79. Bh8 {[%clk 00:00:23]} Bd7 {[%clk
00:00:14]} 80. Bg7 {[%clk 00:00:24]} Bb5 {[%clk 00:00:15]} 81. Bh8 {[%clk
00:00:24]} Ke6 {[%clk 00:00:15]} 82. Ba1 {[%clk 00:00:25]} Kf5 {[%clk
00:00:17]} 83. Bd4 {[%clk 00:00:22]} Kg4 {[%clk 00:00:18]} 84. Bf6 {[%clk
00:00:17]} a2 {[%clk 00:00:19]} 1/2-1/2

[Event "XVI Open Internacional Villa de Ibi"]
[Site "Ibi, Spain"]
[Date "2018.09.09"]
[Round "3.3"]
[White "Cruz Lledo, Pablo"]
[Black "Garcia, Jhoel"]
[Result "0-1"]
[TimeControl "15' + 2'' por jugada"]
[WhiteElo "2436"]
[BlackElo "2250"]

1. d4 {[%clk 00:14:57]} {[%emt 00:00:10]} Nf6 {[%clk 00:14:43]} {[%emt
00:00:47]} 2. c4 {[%clk 00:14:57]} g6 {[%clk 00:14:34]} 3. Nc3 {[%clk
00:14:57]} Bg7 {[%clk 00:14:34]} 4. e4 {[%clk 00:14:57]} d6 {[%clk 00:14:33]}
{[%emt 00:00:04]} 5. Nge2 {[%clk 00:14:57]} O-O {[%clk 00:14:10]} {[%emt
00:00:19]} 6. f3 {[%clk 00:14:58]} {[%emt 00:00:04]} Nc6 {[%clk 00:13:55]}
{[%emt 00:00:12]} 7. Be3 {[%clk 00:14:54]} {[%emt 00:00:09]} a6 {[%clk
00:13:54]} {[%emt 00:00:04]} 8. Qd2 {[%clk 00:14:53]} {[%emt 00:00:04]} e5
{[%clk 00:13:26]} {[%emt 00:00:25]} 9. d5 {[%clk 00:14:48]} {[%emt 00:00:10]}
Na5 {[%clk 00:13:27]} {[%emt 00:00:07]} 10. Nc1 {[%clk 00:14:45]} {[%emt
00:00:04]} c5 {[%clk 00:13:28]} 11. Nb3 {[%clk 00:14:31]} {[%emt 00:00:08]}
Nxb3 {[%clk 00:11:09]} {[%emt 00:02:34]} 12. axb3 {[%clk 00:14:31]} Nh5 {[%clk
00:11:10]} 13. g3 {[%clk 00:14:23]} {[%emt 00:00:07]} f5 {[%clk 00:11:08]}
{[%emt 00:00:04]} 14. Be2 {[%clk 00:14:08]} {[%emt 00:00:12]} Nf6 {[%clk
00:10:41]} {[%emt 00:00:29]} 15. O-O {[%clk 00:13:17]} {[%emt 00:00:50]} fxe4
{[%clk 00:10:30]} {[%emt 00:00:22]} 16. fxe4 {[%clk 00:13:15]} Bh3 {[%clk
00:08:31]} {[%emt 00:01:57]} 17. Rf2 {[%clk 00:13:16]} {[%emt 00:00:10]} Qc7
{[%clk 00:08:24]} {[%emt 00:00:04]} 18. Bg5 {[%clk 00:12:21]} {[%emt 00:01:02]}
Qb6 {[%clk 00:06:08]} {[%emt 00:02:13]} 19. Qe3 {[%clk 00:12:12]} {[%emt
00:00:08]} Ng4 {[%clk 00:05:10]} {[%emt 00:01:00]} 20. Bxg4 {[%clk 00:12:00]}
{[%emt 00:00:20]} Bxg4 {[%clk 00:05:09]} {[%emt 00:00:16]} 21. Na4 {[%clk
00:11:45]} Qc7 {[%clk 00:04:59]} {[%emt 00:00:13]} 22. Raf1 {[%clk 00:11:35]}
{[%emt 00:00:09]} Rxf2 {[%clk 00:04:44]} {[%emt 00:00:17]} 23. Rxf2 {[%clk
00:11:35]} {[%emt 00:00:05]} b5 {[%clk 00:04:26]} {[%emt 00:00:19]} 24. Nc3
{[%clk 00:11:35]} {[%emt 00:00:03]} Rb8 {[%clk 00:04:22]} {[%emt 00:00:05]} 25.
Bh6 {[%clk 00:10:45]} {[%emt 00:00:52]} Qe7 {[%clk 00:03:06]} {[%emt 00:01:15]}
26. Bg5 {[%clk 00:10:16]} {[%emt 00:00:34]} Qd7 {[%clk 00:02:55]} {[%emt
00:00:13]} 27. Bh6 {[%clk 00:10:13]} {[%emt 00:00:05]} Qe7 {[%clk 00:02:47]}
{[%emt 00:00:11]} 28. Bg5 {[%clk 00:08:23]} {[%emt 00:01:49]} Qe8 {[%clk
00:02:36]} {[%emt 00:00:26]} 29. Bh6 {[%clk 00:07:59]} {[%emt 00:00:16]} Bd7
{[%clk 00:02:32]} {[%emt 00:00:06]} 30. Bxg7 {[%clk 00:07:56]} {[%emt
00:00:04]} Kxg7 {[%clk 00:02:33]} 31. cxb5 {[%clk 00:06:49]} {[%emt 00:01:08]}
axb5 {[%clk 00:02:34]} {[%emt 00:00:32]} 32. Rf1 {[%clk 00:06:49]} b4 {[%clk
00:02:23]} {[%emt 00:00:04]} 33. Nb1 {[%clk 00:05:51]} {[%emt 00:00:41]} Bh3
{[%clk 00:02:21]} {[%emt 00:00:09]} 34. Re1 {[%clk 00:05:43]} {[%emt 00:00:05]}
Qe7 {[%clk 00:02:12]} {[%emt 00:00:12]} 35. Nd2 {[%clk 00:05:42]} {[%emt
00:00:07]} Rf8 {[%clk 00:02:11]} 36. Ra1 {[%clk 00:04:42]} {[%emt 00:00:59]} h6
{[%clk 00:01:30]} {[%emt 00:00:47]} 37. Nc4 {[%clk 00:04:22]} {[%emt 00:00:41]}
Rf7 {[%clk 00:01:17]} 38. Qe2 {[%clk 00:04:07]} {[%emt 00:00:08]} Qf6 {[%clk
00:01:16]} {[%emt 00:00:12]} 39. Ne3 {[%clk 00:03:48]} {[%emt 00:00:12]} Qg5
{[%clk 00:01:10]} {[%emt 00:00:32]} 40. Nc4 {[%clk 00:03:36]} {[%emt 00:00:03]}
Qf6 {[%clk 00:01:06]} 41. Ne3 {[%clk 00:03:28]} {[%emt 00:00:05]} h5 {[%clk
00:01:07]} {[%emt 00:00:03]} 42. Ng2 {[%clk 00:03:17]} {[%emt 00:00:24]} Qf3
{[%clk 00:00:53]} {[%emt 00:00:14]} 43. Re1 {[%clk 00:02:14]} {[%emt 00:00:52]}
Bxg2 {[%clk 00:00:49]} {[%emt 00:00:10]} 44. Qxg2 {[%clk 00:02:14]} {[%emt
00:00:03]} Qxb3 {[%clk 00:00:50]} 45. Qe2 {[%clk 00:01:48]} {[%emt 00:00:25]}
c4 {[%clk 00:00:39]} {[%emt 00:00:24]} 46. Rc1 {[%clk 00:01:35]} {[%emt
00:00:06]} c3 {[%clk 00:00:30]} {[%emt 00:00:11]} 47. bxc3 {[%clk 00:01:34]}
{[%emt 00:00:05]} bxc3 {[%clk 00:00:31]} 48. Rc2 {[%clk 00:01:20]} {[%emt
00:00:13]} Qb6+ {[%clk 00:00:27]} {[%emt 00:00:12]} 49. Kg2 {[%clk 00:01:20]}
Qd4 {[%clk 00:00:28]} 50. h4 {[%clk 00:01:02]} {[%emt 00:00:16]} Rb7 {[%clk
00:00:29]} {[%emt 00:00:08]} 51. Kh3 {[%clk 00:00:36]} {[%emt 00:00:22]} Rb2
{[%clk 00:00:27]} {[%emt 00:00:42]} 52. Rxb2 {[%clk 00:00:31]} cxb2 {[%clk
00:00:30]} 53. Qc2 {[%clk 00:00:34]} Qb6 {[%clk 00:00:19]} 54. Qb1 {[%clk
00:00:14]} {[%emt 00:00:05]} Qf2 {[%clk 00:00:20]} {[%emt 00:00:16]} 55. Qd3
{[%clk 00:00:09]} Qg1 {[%clk 00:00:16]} {[%emt 00:00:04]} 56. Qf3 {[%clk
00:00:04]} {[%emt 00:00:04]} b1=Q {[%clk 00:00:13]} {[%emt 00:00:07]} 57. g4
{[%clk 00:00:04]} {[%emt 00:00:04]} hxg4+ {[%clk 00:00:14]} 58. Qxg4 {[%clk
00:00:04]} Qd3+ {[%clk 00:00:15]} {[%emt 00:00:03]} 0-1

[Event "XVI Open Internacional Villa de Ibi"]
[Site "Ibi, Spain"]
[Date "2018.09.09"]
[Round "3.4"]
[White "Granero Roca, Antonio"]
[Black "Nicolas Zapata, Javier"]
[Result "1-0"]
[TimeControl "15' + 2'' por jugada"]
[WhiteElo "2370"]
[BlackElo "2181"]

1. d4 {[%clk 00:14:38]} {[%emt 00:00:27]} Nf6 {[%clk 00:14:53]} {[%emt
00:00:09]} 2. c4 {[%clk 00:14:38]} {[%emt 00:00:08]} g6 {[%clk 00:14:54]} 3.
Nc3 {[%clk 00:14:38]} Bg7 {[%clk 00:14:55]} 4. e4 {[%clk 00:14:40]} d6 {[%clk
00:14:58]} 5. h3 {[%clk 00:14:40]} {[%emt 00:00:09]} O-O {[%clk 00:14:55]} 6.
Nf3 {[%clk 00:14:37]} {[%emt 00:00:15]} Na6 {[%clk 00:14:55]} 7. Be3 {[%clk
00:14:37]} e5 {[%clk 00:14:53]} {[%emt 00:00:07]} 8. d5 {[%clk 00:14:37]} Nc5
{[%clk 00:14:48]} {[%emt 00:00:18]} 9. Nd2 {[%clk 00:14:38]} a5 {[%clk
00:14:44]} {[%emt 00:00:03]} 10. Be2 {[%clk 00:14:37]} Ne8 {[%clk 00:14:36]} 11.
g4 {[%clk 00:14:29]} {[%emt 00:00:06]} f5 {[%clk 00:14:17]} {[%emt 00:00:25]}
12. gxf5 {[%clk 00:14:07]} {[%emt 00:00:21]} gxf5 {[%clk 00:14:17]} {[%emt
00:00:43]} 13. Rg1 {[%clk 00:14:05]} f4 {[%clk 00:13:45]} {[%emt 00:00:09]} 14.
Bxc5 {[%clk 00:14:05]} dxc5 {[%clk 00:13:45]} 15. Bg4 {[%clk 00:14:04]} {[%emt
00:00:09]} Ra6 {[%clk 00:12:17]} {[%emt 00:01:14]} 16. Bxc8 {[%clk 00:13:50]}
{[%emt 00:00:17]} Qxc8 {[%clk 00:12:17]} {[%emt 00:00:38]} 17. Qg4 {[%clk
00:13:36]} {[%emt 00:00:03]} Qxg4 {[%clk 00:11:37]} {[%emt 00:00:24]} 18. hxg4
{[%clk 00:13:25]} {[%emt 00:00:11]} f3 {[%clk 00:11:04]} {[%emt 00:00:34]} 19.
Rg3 {[%clk 00:13:19]} {[%emt 00:00:11]} Raf6 {[%clk 00:10:27]} {[%emt
00:00:37]} 20. O-O-O {[%clk 00:13:07]} {[%emt 00:00:10]} Nd6 {[%clk 00:08:43]}
{[%emt 00:01:47]} 21. Kc2 {[%clk 00:13:01]} {[%emt 00:00:24]} Rg6 {[%clk
00:06:20]} {[%emt 00:02:09]} 22. Rdg1 {[%clk 00:12:46]} {[%emt 00:00:38]} Rf4
{[%clk 00:05:40]} {[%emt 00:00:22]} 23. Kd3 {[%clk 00:12:34]} {[%emt 00:00:23]}
h6 {[%clk 00:04:25]} {[%emt 00:01:07]} 24. Nd1 {[%clk 00:12:07]} {[%emt
00:00:41]} Bf8 {[%clk 00:02:51]} {[%emt 00:01:26]} 25. Ne3 {[%clk 00:11:59]}
{[%emt 00:00:11]} Be7 {[%clk 00:01:53]} {[%emt 00:01:00]} 26. Nf5 {[%clk
00:11:28]} {[%emt 00:00:30]} Bg5 {[%clk 00:01:51]} {[%emt 00:00:33]} 27. Rxf3
{[%clk 00:11:15]} {[%emt 00:00:04]} Kf7 {[%clk 00:01:13]} {[%emt 00:00:22]} 28.
Rxf4 {[%clk 00:10:56]} {[%emt 00:00:21]} Bxf4 {[%clk 00:01:11]} {[%emt
00:00:13]} 29. Nf3 {[%clk 00:10:38]} {[%emt 00:00:11]} Nxf5 {[%clk 00:00:54]}
{[%emt 00:00:42]} 30. exf5 {[%clk 00:10:34]} Rb6 {[%clk 00:00:54]} 31. b3
{[%clk 00:10:29]} a4 {[%clk 00:00:54]} 32. Rb1 {[%clk 00:10:25]} {[%emt
00:00:09]} Ra6 {[%clk 00:00:30]} {[%emt 00:00:18]} 33. b4 {[%clk 00:10:18]}
{[%emt 00:00:46]} Rb6 {[%clk 00:00:13]} 34. b5 {[%clk 00:10:16]} Rd6 {[%clk
00:00:05]} 35. Ke4 {[%clk 00:10:16]} {[%emt 00:00:03]} Kf6 {[%clk 00:00:05]} 36.
Ne1 {[%clk 00:10:09]} {[%emt 00:00:15]} Rd8 {[%clk 00:00:04]} 37. Nd3 {[%clk
00:10:07]} {[%emt 00:00:04]} Kg5 {[%clk 00:00:03]} 38. f3 {[%clk 00:09:59]}
{[%emt 00:00:08]} a3 {[%clk 00:00:03]} {[%emt 00:00:04]} 39. Nxc5 {[%clk
00:09:54]} {[%emt 00:00:06]} Ra8 {[%clk 00:00:04]} {[%emt 00:00:06]} 40. Ne6+
{[%clk 00:09:28]} {[%emt 00:00:23]} Kh4 {[%clk 00:00:04]} {[%emt 00:00:04]} 41.
Nxc7 {[%clk 00:09:15]} {[%emt 00:00:10]} Ra4 {[%clk 00:00:04]} {[%emt
00:00:30]} 42. d6 {[%clk 00:09:03]} {[%emt 00:00:03]} Rxc4+ {[%clk 00:00:03]}
43. Kd5 {[%clk 00:09:04]} Rc2 {[%clk 00:00:03]} 44. Rd1 {[%clk 00:08:51]}
{[%emt 00:00:05]} Rxa2 {[%clk 00:00:04]} {[%emt 00:00:36]} 45. d7 {[%clk
00:08:49]} Bg5 {[%clk 00:00:05]} 46. Ne6 {[%clk 00:08:44]} {[%emt 00:00:04]}
Rb2 1-0